bitfinex/quotes_SOLUSD_20251120
["timestamp","ask_amount","ask_price","bid_price","bid_amount"]
[1763672599469,2.47,134.07,134.05,5.07770539]
[1763672599676,0.67,134.06,134.05,5.07770539]
[1763672601598,0.67,134.06,134.02,61.2]
[1763672601784,0.67,134.06,134.0,111.12096]
[1763672602097,0.67,134.06,134.03,5.07770539]
[1763672605602,0.67,134.06,134.02,5.07770539]
[1763672607400,0.67,134.06,134.03,5.07770539]
[1763672608810,0.67,134.06,134.02,5.07770539]
[1763672608987,0.67,134.06,134.03,5.07770539]
[1763672609496,0.67,134.06,134.04,5.07770539]
[1763672609697,0.67,134.06,134.05,5.07770539]
[1763672610379,1.8,134.07,134.05,5.07770539]
[1763672610587,1.8,134.07,134.06,5.07770539]
[1763672610813,0.71,134.1,134.06,5.07770539]
[1763672610980,1.8,134.09,134.08,5.07770539]
[1763672611179,2.51,134.09,134.01,81.12096]
[1763672611415,0.71,134.08,134.07,5.07770539]
[1763672612475,0.71,134.08,134.01,79.32096]
[1763672612681,5.78770539,134.08,134.01,18.12096]
[1763672612911,5.78770539,134.08,134.03,5.07770539]
[1763672613108,0.71,134.07,134.03,5.07770539]
[1763672613282,1.8,134.06,134.04,5.07770539]
[1763672613706,1.8,134.06,134.05,5.07770539]
[1763672614093,20.63096,134.08,134.05,5.07770539]
[1763672614287,20.63096,134.08,134.06,5.07770539]
[1763672614504,2.51,134.08,134.06,5.07770539]
[1763672614901,2.51,134.08,134.06,3.24975593]
[1763672615298,0.71,134.07,134.04,3.24975593]
[1763672616689,0.71,134.07,134.03,3.24975593]
[1763672616889,0.71,134.07,134.01,3.24975593]
[1763672616890,9.78882769,134.06,134.01,3.24975593]
[1763672617098,2.51,134.05,134.01,3.24975593]
[1763672617313,0.71,134.04,134.01,3.24975593]
[1763672618204,13.03858362,134.06,134.03,3.24975593]
[1763672618205,18.12096,134.06,134.03,3.24975593]
[1763672618533,2.51,134.07,134.04,3.24975593]
[1763672618819,0.71,134.06,134.04,3.24975593]
[1763672619607,0.71,134.08,134.05,3.24975593]
[1763672619831,2.51,134.08,134.04,3.24975593]
[1763672620301,0.71,134.07,134.04,3.24975593]
[1763672624221,3.95975593,134.07,134.01,19.92096]
[1763672624412,0.71,134.07,134.02,3.24975593]
[1763672624743,0.71,134.06,134.03,3.24975593]
[1763672628000,0.71,134.06,134.04,3.24975593]
[1763672628205,0.71,134.09,134.05,3.24975593]
[1763672628432,2.51,134.08,134.05,3.24975593]
[1763672628607,0.71,134.07,134.05,3.24975593]
[1763672630516,0.71,134.07,134.04,3.24975593]
[1763672632720,1.8,134.06,134.01,81.12096]
[1763672632914,1.8,134.06,134.03,3.24975593]
[1763672633228,0.66,134.05,134.03,3.24975593]
[1763672633411,1.8,134.06,134.03,3.24975593]
[1763672633736,2.46,134.06,134.04,3.24975593]
[1763672633939,2.46,134.09,134.05,3.24975593]
[1763672634134,2.46,134.09,134.06,3.24975593]
[1763672634741,0.66,134.08,134.06,3.24975593]
[1763672636447,0.66,134.08,134.05,3.24975593]
[1763672637016,0.66,134.08,134.03,18.12096]
[1763672637221,0.66,134.08,134.03,21.37071593]
[1763672637520,5.68914977,134.08,134.03,21.37071593]
[1763672637933,0.66,134.07,134.03,21.37071593]
[1763672638935,0.66,134.07,134.04,3.24975593]
[1763672641258,5.02914977,134.08,134.06,3.24975593]
[1763672641422,6.20407305,134.15,134.07,3.24975593]
[1763672641623,7.49538808,134.14,134.11,3.24975593]
[1763672641822,8.28514401,134.13,134.08,3.24975593]
[1763672642031,5.03538808,134.12,134.08,3.24975593]
[1763672642250,0.66,134.11,134.05,1.8]
[1763672642462,0.66,134.11,134.07,3.24975593]
[1763672643630,13.03858362,134.1,134.05,3.24975593]
[1763672643921,13.03858362,134.1,134.06,3.24975593]
[1763672643922,14.82421577,134.1,134.06,3.24975593]
[1763672644150,0.66,134.09,134.06,3.24975593]
[1763672644347,0.66,134.09,134.07,3.24975593]
[1763672645356,7.49538808,134.11,134.08,3.24975593]
[1763672645549,0.66,134.1,134.09,3.24975593]
[1763672646063,0.66,134.1,134.02,90.90978769]
[1763672646249,0.66,134.1,134.06,3.24975593]
[1763672646425,3.90975593,134.1,134.05,3.24975593]
[1763672646926,0.66,134.09,134.06,3.24975593]
[1763672647942,5.03538808,134.1,134.08,3.24975593]
[1763672648126,0.66,134.11,134.09,3.24975593]
[1763672648445,0.66,134.11,134.1,3.24975593]
[1763672648755,0.66,134.11,134.09,3.24975593]
[1763672649126,0.66,134.13,134.1,3.24975593]
[1763672649327,0.66,134.13,134.11,3.24975593]
[1763672649872,5.6884915,134.15,134.12,3.24975593]
[1763672650156,8.36950555,134.2,134.14,3.24975593]
[1763672650157,2.46,134.17,134.14,3.24975593]
[1763672650454,2.46,134.17,134.15,3.24975593]
[1763672650753,2.46,134.17,134.16,3.24975593]
[1763672650956,2.46,134.17,134.12,12.99902372]
[1763672651367,0.66,134.17,134.16,3.24975593]
[1763672651668,0.66,134.19,134.16,3.24975593]
[1763672651843,5.01737854,134.22,134.18,3.24975593]
[1763672652029,0.66,134.2,134.19,3.24975593]
[1763672653157,0.66,134.2,134.14,1.8]
[1763672653360,1.8,134.19,134.13,18.12096]
[1763672653570,1.8,134.19,134.16,3.24975593]
[1763672653870,0.66,134.18,134.16,3.24975593]
[1763672654275,9.78882769,134.22,134.17,3.24975593]
[1763672654476,0.66,134.25,134.21,3.24975593]
[1763672654773,1.9,134.26,134.24,3.24975593]
[1763672654936,0.1,134.26,134.25,3.24975593]
[1763672656557,0.76,134.26,134.2,1.8]
[1763672656737,0.76,134.26,134.25,7.71591088]
[1763672658667,0.76,134.26,134.2,1.8]
[1763672658869,0.76,134.26,134.25,7.71591088]
[1763672659059,0.1,134.26,134.25,7.71591088]
[1763672662286,0.1,134.26,134.25,17.50473857]
[1763672662450,0.1,134.26,134.25,19.30473857]
[1763672663083,0.1,134.26,134.25,37.42569857]
[1763672663292,0.1,134.26,134.25,27.63687088]
[1763672663765,0.1,134.26,134.25,26.21297088]
[1763672665483,0.1,134.26,134.25,25.83687088]
[1763672667052,0.8,134.26,134.25,18.12096]
[1763672667561,0.8,134.26,134.25,25.83687088]
[1763672668070,0.1,134.26,134.25,25.83687088]
[1763672668953,0.8,134.26,134.25,25.83687088]
[1763672669172,0.8,134.26,134.23,18.12096]
[1763672669483,0.8,134.26,134.2,61.2]
[1763672669484,0.8,134.26,134.22,7.71591088]
[1763672670177,0.8,134.26,134.19,1.8]
[1763672670178,8.51591088,134.26,134.21,7.71591088]
[1763672670572,0.67,134.25,134.21,7.71591088]
[1763672672671,8.38591088,134.25,134.19,25.83687088]
[1763672672985,7.71591088,134.24,134.19,25.83687088]
[1763672673180,0.67,134.24,134.2,7.71591088]
[1763672673484,0.67,134.23,134.22,18.12096]
[1763672673664,0.67,134.23,134.2,7.71591088]
[1763672674891,0.67,134.23,134.22,18.12096]
[1763672675097,12.76824146,134.23,134.17,18.12096]
[1763672677163,0.67,134.19,134.15,12.09824146]
[1763672678284,0.67,134.19,134.16,12.09824146]
[1763672679272,1.8,134.21,134.18,12.09824146]
[1763672679485,0.67,134.2,134.18,12.09824146]
[1763672682365,0.67,134.2,134.17,12.09824146]
[1763672683285,0.67,134.2,134.18,12.09824146]
[1763672683488,0.67,134.2,134.17,12.09824146]
[1763672685491,0.67,134.2,134.16,12.09824146]
[1763672685794,12.76824146,134.2,134.15,61.2]
[1763672685963,0.67,134.2,134.15,61.2]
[1763672686284,0.67,134.19,134.17,12.09824146]
[1763672686591,0.67,134.19,134.15,61.2]
[1763672686592,0.67,134.21,134.18,12.09824146]
[1763672686791,1.8,134.24,134.2,12.09824146]
[1763672687092,0.67,134.22,134.21,12.09824146]
[1763672687290,0.67,134.22,134.2,12.09824146]
[1763672687785,0.67,134.22,134.19,12.09824146]
[1763672688388,0.67,134.22,134.2,12.09824146]
[1763672692686,0.67,134.22,134.17,63.0]
[1763672692877,0.67,134.22,134.19,12.09824146]
[1763672694996,0.67,134.22,134.18,12.09824146]
[1763672695367,0.67,134.22,134.2,12.09824146]
[1763672695584,0.67,134.22,134.19,12.09824146]
[1763672695995,0.67,134.22,134.18,12.09824146]
[1763672696196,0.67,134.22,134.17,91.41920146]
[1763672696400,0.67,134.22,134.18,12.09824146]
[1763672698504,1.8,134.21,134.18,12.09824146]
[1763672698903,0.65,134.2,134.18,12.09824146]
[1763672701007,0.65,134.2,134.18,5.06858001]
[1763672701178,0.65,134.2,134.17,79.32096]
[1763672701377,1.8,134.21,134.18,5.06858001]
[1763672701617,0.65,134.19,134.18,5.06858001]
[1763672701781,0.65,134.2,134.18,5.06858001]
[1763672701984,1.8,134.21,134.18,5.06858001]
[1763672702188,2.45,134.21,134.19,5.06858001]
[1763672702877,0.65,134.21,134.19,5.06858001]
[1763672703079,5.06858001,134.25,134.2,5.06858001]
[1763672703277,1.78,134.24,134.21,5.06858001]
[1763672703476,2.43,134.24,134.2,5.06858001]
[1763672703683,0.65,134.23,134.19,5.06858001]
[1763672704095,0.65,134.23,134.19,66.26858001]
[1763672706306,0.65,134.23,134.2,5.06858001]
[1763672707007,1.78,134.22,134.2,5.06858001]
[1763672707396,0.65,134.22,134.2,5.06858001]
[1763672707905,1.78,134.23,134.21,5.06858001]
[1763672708106,0.1,134.26,134.22,5.06858001]
[1763672708309,0.1,134.26,134.25,5.06858001]
[1763672709183,0.1,134.26,134.25,21.70598771]
[1763672709378,0.2,134.28,134.25,39.82694771]
[1763672709601,0.2,134.28,134.27,23.18954001]
[1763672709920,0.2,134.28,134.27,24.96954001]
[1763672710793,0.2,134.28,134.27,31.9815658]
[1763672711107,0.1,134.31,134.3,27.90978769]
[1763672711313,0.1,134.31,134.3,41.77039349]
[1763672711884,0.1,134.31,134.3,63.715173]
[1763672712193,0.1,134.33,134.31,9.78882769]
[1763672712402,0.1,134.33,134.32,31.9815658]
[1763672713195,0.1,134.33,134.32,16.84401061]
[1763672713391,0.1,134.33,134.32,26.6328383]
[1763672713687,0.65,134.43,134.36,21.86943349]
[1763672714020,0.65,134.43,134.36,35.73003929]
[1763672714197,0.65,134.43,134.36,23.64943349]
[1763672714937,0.65,134.43,134.36,35.73003929]
[1763672715212,0.65,134.41,134.36,35.73003929]
[1763672715393,0.65,134.41,134.36,23.64943349]
[1763672716699,9.78882769,134.44,134.35,18.12096]
[1763672716899,0.75,134.37,134.36,12.0806058]
[1763672717100,0.1,134.37,134.36,12.0806058]
[1763672717304,0.75,134.37,134.36,12.0806058]
[1763672718116,0.75,134.37,134.34,18.12096]
[1763672718314,0.75,134.37,134.36,12.0806058]
[1763672720610,0.75,134.37,134.35,12.0806058]
[1763672721707,0.75,134.37,134.33,1.78]
[1763672722016,0.75,134.37,134.31,18.12096]
[1763672722017,0.75,134.37,134.34,12.0806058]
[1763672722224,0.75,134.37,134.35,12.0806058]
[1763672723810,0.75,134.37,134.36,12.0806058]
[1763672723811,0.1,134.37,134.36,12.0806058]
[1763672725916,0.76,134.37,134.36,12.0806058]
[1763672726324,0.1,134.37,134.36,12.0806058]
[1763672727728,0.1,134.37,134.36,33.95003929]
[1763672728828,0.1,134.37,134.36,21.86943349]
[1763672729615,0.1,134.37,134.36,12.0806058]
[1763672730129,0.1,134.37,134.36,21.86943349]
[1763672730734,0.1,134.37,134.36,12.0806058]
[1763672732208,0.1,134.37,134.36,33.95003929]
[1763672732445,0.1,134.37,134.36,53.85099929]
[1763672732902,0.67,134.42,134.39,18.12096]
[1763672733110,0.67,134.42,134.41,5.05064403]
[1763672733309,0.67,134.43,134.41,5.05064403]
[1763672733612,0.67,134.43,134.42,5.05064403]
[1763672736939,0.67,134.43,134.42,3.23233885]
[1763672740566,0.67,134.45,134.42,3.23233885]
[1763672740873,0.67,134.45,134.44,3.23233885]
[1763672741160,0.67,134.45,134.43,3.23233885]
[1763672741574,0.67,134.45,134.41,1.78]
[1763672741575,0.67,134.45,134.44,3.23233885]
[1763672742032,0.67,134.47,134.44,3.23233885]
[1763672742234,0.67,134.47,134.45,3.23233885]
[1763672742435,0.67,134.47,134.46,3.23233885]
[1763672742644,0.67,134.47,134.45,3.23233885]
[1763672743762,0.67,134.47,134.46,3.23233885]
[1763672745161,0.67,134.47,134.45,3.23233885]
[1763672745461,0.67,134.47,134.44,3.23233885]
[1763672745852,0.67,134.47,134.45,3.23233885]
[1763672747768,0.67,134.47,134.46,3.23233885]
[1763672748174,0.67,134.47,134.41,1.78]
[1763672748348,0.67,134.47,134.46,3.23233885]
[1763672748545,0.67,134.47,134.45,3.23233885]
[1763672748766,5.01233885,134.46,134.41,23.13329885]
[1763672748968,3.23233885,134.45,134.4,3.23233885]
[1763672749163,3.90233885,134.45,134.4,3.23233885]
[1763672749447,0.67,134.44,134.4,3.23233885]
[1763672750872,0.67,134.44,134.4,7.69800516]
[1763672751039,8.36800516,134.44,134.39,7.69800516]
[1763672751442,0.69,134.43,134.39,7.69800516]
[1763672751657,0.69,134.43,134.36,7.69800516]
[1763672751658,0.69,134.43,134.4,7.69800516]
[1763672751868,0.69,134.43,134.36,7.69800516]
[1763672752066,0.69,134.43,134.4,7.69800516]
[1763672752749,0.69,134.43,134.41,7.69800516]
[1763672753769,0.69,134.43,134.42,7.69800516]
[1763672754668,25.81896516,134.47,134.42,7.69800516]
[1763672754669,0.69,134.47,134.42,7.69800516]
[1763672754984,4.994901,134.5,134.46,7.69800516]
[1763672755149,4.994901,134.5,134.47,7.69800516]
[1763672755654,0.69,134.49,134.47,7.69800516]
[1763672757975,0.69,134.49,134.48,7.69800516]
[1763672758160,2.47,134.49,134.48,7.69800516]
[1763672759473,0.69,134.49,134.48,7.69800516]
[1763672759679,0.1,134.51,134.48,7.69800516]
[1763672759680,0.79,134.51,134.48,7.69800516]
[1763672759847,0.79,134.51,134.5,7.69800516]
[1763672760266,0.1,134.51,134.5,7.69800516]
[1763672760663,0.79,134.51,134.5,7.69800516]
[1763672760982,0.1,134.51,134.5,7.69800516]
[1763672761556,0.1,134.51,134.5,18.12096]
[1763672761874,0.79,134.51,134.5,25.81896516]
[1763672762378,0.1,134.51,134.5,25.81896516]
[1763672763148,0.1,134.51,134.5,17.48683285]
[1763672763355,0.1,134.51,134.5,25.81896516]
[1763672764466,0.79,134.51,134.4,7.69800516]
[1763672764676,0.79,134.51,134.45,2.98118129]
[1763672765003,0.79,134.51,134.42,1.78]
[1763672765004,0.79,134.51,134.48,7.69800516]
[1763672765165,9.78882769,134.5,134.47,7.69800516]
[1763672765476,11.56882769,134.5,134.47,7.69800516]
[1763672765664,0.69,134.49,134.43,9.78882769]
[1763672765860,0.69,134.49,134.46,7.69800516]
[1763672766262,0.1,134.51,134.48,7.69800516]
[1763672766470,0.1,134.51,134.5,7.69800516]
[1763672766668,0.79,134.51,134.5,7.69800516]
[1763672768780,0.79,134.51,134.45,18.12096]
[1763672768984,0.79,134.51,134.48,7.69800516]
[1763672769567,0.79,134.51,134.47,7.69800516]
[1763672770280,0.79,134.51,134.45,18.12096]
[1763672770483,11.56882769,134.5,134.46,7.69800516]
[1763672770788,18.91096,134.51,134.48,7.69800516]
[1763672770987,0.69,134.5,134.48,7.69800516]
[1763672773110,10.47882769,134.5,134.47,7.69800516]
[1763672773284,9.78882769,134.49,134.43,18.12096]
[1763672773472,1.78,134.48,134.45,7.69800516]
[1763672773672,2.47,134.48,134.46,7.69800516]
[1763672773873,0.69,134.47,134.46,7.69800516]
[1763672775295,0.69,134.47,134.45,7.69800516]
[1763672775477,0.69,134.47,134.43,7.69800516]
[1763672775882,9.78882769,134.46,134.43,7.69800516]
[1763672776288,0.69,134.45,134.43,7.69800516]
[1763672776796,2.47,134.45,134.39,11.56882769]
[1763672777004,2.47,134.45,134.41,7.69800516]
[1763672777186,2.47,134.45,134.42,7.69800516]
[1763672777187,0.69,134.44,134.42,7.69800516]
[1763672778094,0.69,134.44,134.38,18.12096]
[1763672778296,0.69,134.44,134.36,19.90096]
[1763672778501,0.69,134.44,134.41,7.69800516]
[1763672778869,0.69,134.44,134.42,7.69800516]
[1763672779296,9.78882769,134.46,134.43,7.69800516]
[1763672779505,0.69,134.44,134.43,7.69800516]
[1763672780809,0.68,134.44,134.43,7.69800516]
[1763672781702,0.68,134.44,134.42,7.69800516]
[1763672784307,0.68,134.44,134.4,9.78882769]
[1763672784507,0.68,134.44,134.4,7.69800516]
[1763672784892,0.68,134.44,134.4,3.23299156]
[1763672785501,2.46,134.46,134.43,3.23299156]
[1763672785809,0.68,134.45,134.44,3.23299156]
[1763672786578,0.68,134.45,134.43,3.23299156]
[1763672786979,0.68,134.45,134.42,3.23299156]
[1763672787180,0.68,134.45,134.41,3.23299156]
[1763672787375,9.78882769,134.44,134.4,3.23299156]
[1763672787603,1.78,134.43,134.4,3.23299156]
[1763672787802,2.46,134.43,134.38,18.12096]
[1763672788008,10.46882769,134.42,134.37,9.78882769]
[1763672788182,10.46882769,134.42,134.38,3.23299156]
[1763672788510,0.68,134.41,134.38,3.23299156]
[1763672788876,0.68,134.41,134.36,19.90096]
[1763672789201,0.68,134.41,134.38,7.70001038]
[1763672789791,2.46,134.43,134.4,7.70001038]
[1763672789997,0.68,134.41,134.4,7.70001038]
[1763672790200,0.68,134.41,134.39,7.70001038]
[1763672790690,0.68,134.41,134.38,7.70001038]
[1763672791413,0.68,134.41,134.39,7.70001038]
[1763672792428,0.71,134.44,134.4,7.70001038]
[1763672792709,0.71,134.43,134.42,7.70001038]
[1763672793828,27.90978769,134.42,134.36,0.74426912]
[1763672794128,9.78882769,134.4,134.35,7.70001038]
[1763672794507,0.71,134.39,134.35,7.70001038]
[1763672795217,1.78,134.38,134.35,7.70001038]
[1763672795394,0.71,134.39,134.35,7.70001038]
[1763672795601,0.71,134.38,134.35,7.70001038]
[1763672795928,2.49,134.42,134.37,7.70001038]
[1763672796095,0.71,134.41,134.38,7.70001038]
[1763672796924,0.71,134.41,134.38,12.06567799]
[1763672798616,0.71,134.41,134.39,12.06567799]
[1763672799621,0.71,134.41,134.4,12.06567799]
[1763672800527,0.71,134.41,134.36,27.90978769]
[1763672800824,0.71,134.41,134.38,12.06567799]
[1763672801195,0.71,134.41,134.38,73.26567799]
[1763672801934,0.71,134.41,134.38,61.2]
[1763672803328,0.71,134.41,134.39,12.06567799]
[1763672803635,2.49,134.41,134.39,12.06567799]
[1763672803808,0.71,134.41,134.4,12.06567799]
[1763672805100,0.71,134.41,134.39,12.06567799]
[1763672805606,0.71,134.41,134.38,73.26567799]
[1763672806420,0.71,134.41,134.38,61.2]
[1763672807104,0.71,134.41,134.37,12.06567799]
[1763672808907,0.71,134.41,134.36,30.18663799]
[1763672809633,9.78882769,134.4,134.36,30.18663799]
[1763672809837,1.78,134.39,134.36,30.18663799]
[1763672810139,2.49,134.39,134.36,30.18663799]
[1763672810437,0.66,134.38,134.36,30.18663799]
[1763672810822,0.66,134.38,134.36,5.05478306]
[1763672811619,0.66,134.38,134.34,1.78]
[1763672811819,0.66,134.38,134.35,5.05478306]
[1763672812334,0.66,134.38,134.33,23.17574306]
[1763672812544,0.66,134.38,134.34,5.05478306]
[1763672814740,12.22882769,134.4,134.37,5.05478306]
[1763672814925,12.22882769,134.4,134.34,1.78]
[1763672814926,2.44,134.4,134.38,5.05478306]
[1763672815120,0.66,134.4,134.38,5.05478306]
[1763672815322,2.44,134.4,134.38,5.05478306]
[1763672815723,0.66,134.39,134.37,5.05478306]
[1763672818242,5.66206416,134.42,134.38,5.05478306]
[1763672818430,5.66206416,134.42,134.39,5.05478306]
[1763672818431,1.78,134.41,134.39,5.05478306]
[1763672818834,2.44,134.41,134.39,5.05478306]
[1763672819719,2.44,134.41,134.38,5.05478306]
[1763672820452,7.44323212,134.41,134.38,5.05478306]
[1763672820635,2.44,134.41,134.38,5.05478306]
[1763672820828,2.44,134.41,134.37,5.05478306]
[1763672820829,0.66,134.4,134.37,5.05478306]
[1763672821040,6.11767749,134.4,134.37,5.05478306]
[1763672821551,0.66,134.39,134.37,5.05478306]
[1763672821919,0.66,134.39,134.34,18.12096]
[1763672822647,0.66,134.39,134.35,5.05478306]
[1763672824766,16.62361075,134.38,134.29,21.90172082]
[1763672825063,9.78882769,134.35,134.3,5.05478306]
[1763672825256,11.56882769,134.35,134.3,5.05478306]
[1763672825547,0.66,134.34,134.3,5.05478306]
[1763672826841,0.66,134.34,134.29,18.12096]
[1763672827041,0.66,134.34,134.3,12.08038453]
[1763672827331,6.11279777,134.34,134.3,12.08038453]
[1763672827587,9.78882769,134.33,134.24,61.2]
[1763672827729,1.78,134.32,134.28,12.08038453]
[1763672827932,1.78,134.32,134.29,12.08038453]
[1763672827933,2.44,134.32,134.29,12.08038453]
[1763672828157,0.66,134.31,134.28,12.08038453]
[1763672828319,12.74038453,134.31,134.26,12.08038453]
[1763672828830,0.66,134.3,134.25,19.90096]
[1763672829157,21.86921222,134.28,134.23,12.28038453]
[1763672829359,9.78882769,134.28,134.23,12.28038453]
[1763672829535,12.74038453,134.27,134.23,0.2]
[1763672829724,23.64921222,134.26,134.23,0.2]
[1763672829932,12.08038453,134.25,134.23,0.2]
[1763672830123,9.78882769,134.24,134.23,0.2]
[1763672830333,22.52921222,134.24,134.23,0.2]
[1763672830549,10.44882769,134.24,134.23,0.2]
[1763672831960,10.44882769,134.24,134.19,0.2]
[1763672831961,9.78882769,134.22,134.19,0.2]
[1763672832140,21.86921222,134.2,134.19,0.2]
[1763672832465,22.52921222,134.2,134.19,0.2]
[1763672834057,10.44882769,134.2,134.19,0.2]
[1763672834864,0.66,134.24,134.19,12.49038453]
[1763672835053,0.66,134.23,134.19,12.49038453]
[1763672835248,0.66,134.23,134.21,12.08038453]
[1763672836961,0.66,134.23,134.2,12.08038453]
[1763672837346,9.78882769,134.22,134.19,0.2]
[1763672837551,2.44,134.21,134.19,0.2]
[1763672837932,1.78,134.21,134.19,0.2]
[1763672838138,0.66,134.2,134.19,0.2]
[1763672840140,2.44,134.2,134.19,0.2]
[1763672840755,12.22882769,134.2,134.19,0.2]
[1763672840965,12.22882769,134.2,134.14,0.2]
[1763672840966,9.78882769,134.18,134.14,0.2]
[1763672841272,1.78,134.17,134.14,0.2]
[1763672841464,2.47,134.17,134.14,0.2]
[1763672841649,0.69,134.16,134.14,0.2]
[1763672842058,1.78,134.17,134.14,12.28038453]
[1763672842265,1.78,134.18,134.16,12.08038453]
[1763672844067,0.69,134.17,134.14,0.2]
[1763672844371,0.69,134.17,134.15,12.08038453]
[1763672844571,1.78,134.18,134.15,12.08038453]
[1763672844871,2.47,134.17,134.15,12.08038453]
[1763672845446,2.47,134.17,134.14,12.28038453]
[1763672845868,2.47,134.17,134.14,0.2]
[1763672845869,0.69,134.16,134.14,0.2]
[1763672847770,21.86921222,134.15,134.14,0.2]
[1763672848176,22.55921222,134.15,134.14,0.2]
[1763672849380,72.55921222,134.15,134.14,0.2]
[1763672849779,77.4603384,134.15,134.14,0.2]
[1763672851280,82.84531463,134.15,134.14,0.2]
[1763672851669,92.29856678,134.15,134.14,0.2]
[1763672851875,82.84531463,134.15,134.14,0.2]
[1763672852089,84.84422463,134.15,134.14,0.2]
[1763672852394,91.07458467,134.15,134.14,0.2]
[1763672852895,89.07567467,134.15,134.14,0.2]
[1763672853096,91.07458467,134.15,134.14,0.2]
[1763672853475,84.84422463,134.15,134.14,0.2]
[1763672854370,91.07458467,134.15,134.14,0.2]
[1763672854767,100.30892682,134.15,134.14,0.2]
[1763672855073,59.78882769,134.09,134.06,0.2]
[1763672855379,13.86038453,134.08,134.06,0.2]
[1763672855602,71.86921222,134.09,134.06,0.2]
[1763672855774,1.78,134.08,134.06,12.69038453]
[1763672855970,1.78,134.08,134.06,0.2]
[1763672856281,2.46,134.08,134.06,0.2]
[1763672856869,1.78,134.07,134.06,0.2]
[1763672857074,50.68,134.11,134.06,8.34953909]
[1763672857377,1.78,134.09,134.07,8.14953909]
[1763672857617,1.78,134.09,134.06,8.34953909]
[1763672858806,2.46,134.09,134.06,0.2]
[1763672859475,7.3501757,134.09,134.06,0.2]
[1763672860003,7.73953909,134.07,134.06,0.2]
[1763672860367,8.41953909,134.07,134.06,0.2]
[1763672860589,10.19953909,134.07,134.06,0.2]
[1763672861087,2.46,134.07,134.06,0.2]
[1763672862085,7.35369803,134.07,134.06,0.2]
[1763672863692,15.09323712,134.07,134.06,0.2]
[1763672864500,7.35369803,134.07,134.06,0.2]
[1763672865158,15.09323712,134.07,134.06,0.2]
[1763672865280,4.89369803,134.07,134.06,7.93953909]
[1763672865601,1.78,134.07,134.06,0.2]
[1763672865792,6.67369803,134.07,134.06,0.2]
[1763672865988,7.35369803,134.07,134.06,0.2]
[1763672866695,24.88206481,134.07,134.06,0.2]
[1763672867298,80.24294981,134.07,134.06,0.2]
[1763672867616,86.36171899,134.07,134.06,0.2]
[1763672867903,80.24713085,134.07,134.06,0.2]
[1763672868109,50.0,134.05,134.01,0.2]
[1763672868410,21.8331949,134.04,134.01,0.2]
[1763672868607,4.89369803,134.03,134.01,0.2]
[1763672868781,6.67369803,134.02,134.01,0.2]
[1763672868992,1.78,134.02,134.01,8.34953909]
[1763672869188,6.67369803,134.02,134.01,8.34953909]
[1763672870117,6.67369803,134.02,134.01,0.2]
[1763672870309,6.67369803,134.02,134.01,7.93953909]
[1763672870515,6.67369803,134.02,134.01,0.2]
[1763672871620,1.78,134.02,134.01,0.2]
[1763672871829,15.16535791,134.02,134.01,0.2]
[1763672872127,86.51414215,134.02,134.01,0.2]
[1763672872325,17.52836678,134.01,134.0,30.1]
[1763672872500,28.56436862,134.01,134.0,30.1]
[1763672872689,20.82482953,134.01,134.0,30.1]
[1763672872892,30.34436862,134.01,134.0,30.1]
[1763672873093,30.97433508,134.01,134.0,30.1]
[1763672874021,22.60482953,134.01,134.0,30.1]
[1763672874229,29.19433508,134.01,134.0,30.1]
[1763672874402,30.97433508,134.01,134.0,30.1]
[1763672875827,38.71387417,134.01,134.0,30.1]